fUST/lending_fUST_20250124
["ID","MTS","AMOUNT","RATE_DAILY","PERIOD"]
[350182565,1737676238647,-500.0,0.00019178,2]
[350182567,1737676238657,-500.0,0.00019178,2]
[350182569,1737676238667,-500.0,0.00019178,2]
[350182571,1737676238676,-500.0,0.00019178,2]
[350182573,1737676238685,-136.87984358,0.00019178,2]
[350182577,1737676238709,-363.12015642,0.00019178,2]
[350182579,1737676238719,-500.0,0.00019178,2]
[350182581,1737676238729,-500.0,0.00019178,2]
[350182583,1737676238739,-500.0,0.00019178,2]
[350182585,1737676238749,-500.0,0.00019178,2]
[350182587,1737676238759,-167.72320469,0.00019178,2]
[350182589,1737676238768,-500.0,0.00019178,2]
[350182592,1737676238779,-500.0,0.00019178,2]
[350182594,1737676238788,-500.0,0.00019178,2]
[350182596,1737676238798,-500.0,0.00019178,2]
[350182598,1737676238808,-500.0,0.00019178,2]
[350182600,1737676238818,-500.0,0.00019178,2]
[350182602,1737676238828,-500.0,0.00019178,2]
[350182604,1737676238838,-500.0,0.00019178,2]
[350182606,1737676238848,-500.0,0.00019178,2]
[350182608,1737676238858,-500.0,0.00019178,2]
[350182610,1737676238868,-501.55256837,0.00019178,2]
[350182612,1737676238878,-500.0,0.00019178,2]
[350182614,1737676238887,-417.47102027,0.00019178,2]
[350182616,1737676238897,-500.0,0.00019178,2]
[350182618,1737676238907,-500.0,0.00019178,2]
[350182621,1737676238917,-500.0,0.00019178,2]
[350182623,1737676238927,-500.0,0.00019178,2]
[350182625,1737676238937,-500.0,0.00019178,2]
[350182627,1737676238947,-500.0,0.00019178,2]
[350182629,1737676238958,-301.69102762,0.00019178,2]
[350182631,1737676238967,-222.60415752,0.00019178,2]
[350182633,1737676238977,-500.0,0.00019178,2]
[350182635,1737676238986,-500.0,0.00019178,2]
[350182637,1737676238995,-500.0,0.00019178,2]
[350182639,1737676239005,-477.78907011,0.00019178,2]
[350182641,1737676239015,-500.0,0.00019178,2]
[350182643,1737676239024,-500.0,0.00019178,2]
[350182645,1737676239034,-503.43614434,0.00019178,2]
[350182647,1737676239044,-516.19,0.00019178,2]
[350182649,1737676239054,-500.0,0.00019178,2]
[350182651,1737676239063,-500.0,0.00019178,2]
[350182653,1737676239073,-191.84176284,0.00019178,2]
[350182655,1737676239081,-500.0,0.00019178,2]
[350182657,1737676239091,-500.0,0.00019178,2]
[350182660,1737676239101,-505.80385767,0.00019178,2]
[350182662,1737676239110,-522.74,0.00019178,2]
[350182664,1737676239120,-500.0,0.00019178,2]
[350182666,1737676239129,-500.0,0.00019178,2]
[350182668,1737676239138,-502.74336708,0.00019178,2]
[350182670,1737676239150,-500.0,0.00019178,2]
[350182672,1737676239159,-500.0,0.00019178,2]
[350182674,1737676239168,-500.0,0.00019178,2]
[350182676,1737676239178,-500.0,0.00019178,2]
[350182678,1737676239187,-500.0,0.00019178,2]
[350182680,1737676239197,-503.69295102,0.00019178,2]
[350182682,1737676239207,-500.0,0.00019178,2]
[350182685,1737676239217,-516.04767782,0.00019178,2]
[350182687,1737676239227,-293.89958269,0.00019178,2]
[350182689,1737676239236,-500.0,0.00019178,2]
[350182691,1737676239245,-428.65960098,0.00019178,2]
[350182693,1737676239255,-500.0,0.00019178,2]
[350182695,1737676239264,-500.0,0.00019178,2]
[350182697,1737676239274,-500.0,0.00019178,2]
[350182699,1737676239283,-500.0,0.00019178,2]
[350182701,1737676239292,-500.0,0.00019178,2]
[350182703,1737676239302,-500.0,0.00019178,2]
[350182705,1737676239311,-500.0,0.00019178,2]
[350182707,1737676239321,-500.0,0.00019178,2]
[350182709,1737676239330,-500.0,0.00019178,2]
[350182711,1737676239340,-500.0,0.00019178,2]
[350182715,1737676239483,-500.0,0.00019178,2]
[350182716,1737676239496,-500.0,0.00019178,2]
[350182717,1737676239506,-500.0,0.00019178,2]
[350182718,1737676239516,-500.0,0.00019178,2]
[350182719,1737676239525,-522.18235512,0.00019178,2]
[350182720,1737676239535,-500.0,0.00019178,2]
[350182721,1737676239545,-500.0,0.00019178,2]
[350182722,1737676239555,-500.0,0.00019178,2]
[350182723,1737676239565,-500.0,0.00019178,2]
[350182724,1737676239575,-500.0,0.00019178,2]
[350182725,1737676239584,-500.0,0.00019178,2]
[350182726,1737676239596,-500.0,0.00019178,2]
[350182727,1737676239606,-500.0,0.00019178,2]
[350182728,1737676239616,-500.0,0.00019178,2]
[350182729,1737676239626,-503.05170192,0.00019178,2]
[350182730,1737676239635,-500.0,0.00019178,2]
[350182731,1737676239646,-500.0,0.00019178,2]
[350182732,1737676239656,-500.0,0.00019178,2]
[350182733,1737676239665,-500.0,0.00019178,2]
[350182734,1737676239674,-500.0,0.00019178,2]
[350182735,1737676239684,-500.0,0.00019178,2]
[350182736,1737676239694,-500.0,0.00019178,2]
[350182737,1737676239703,-500.0,0.00019178,2]
[350182738,1737676239715,-500.0,0.00019178,2]
[350182739,1737676239725,-500.0,0.00019178,2]
[350182740,1737676239734,-539.09,0.00019178,2]
[350182741,1737676239744,-500.0,0.00019178,2]
[350182742,1737676239754,-500.0,0.00019178,2]
[350182743,1737676239763,-500.0,0.00019178,2]
[350182744,1737676239773,-500.0,0.00019178,2]
[350182745,1737676239783,-500.0,0.00019178,2]
[350182746,1737676239793,-500.0,0.00019178,2]
[350182747,1737676239803,-500.0,0.00019178,2]
[350182748,1737676239813,-500.0,0.00019178,2]
[350182749,1737676239822,-500.0,0.00019178,2]
[350182750,1737676239832,-500.0,0.00019178,2]
[350182751,1737676239842,-500.0,0.00019178,2]
[350182752,1737676239851,-500.0,0.00019178,2]
[350182753,1737676239861,-585.66056731,0.00019178,2]
[350182754,1737676239871,-503.19520352,0.00019178,2]
[350182755,1737676239881,-500.0,0.00019178,2]
[350182756,1737676239892,-500.0,0.00019178,2]
[350182757,1737676239901,-500.0,0.00019178,2]
[350182758,1737676239912,-500.0,0.00019178,2]
[350182759,1737676239922,-500.0,0.00019178,2]
[350182760,1737676239932,-500.0,0.00019178,2]
[350182761,1737676239941,-500.0,0.00019178,2]
[350182762,1737676239951,-500.0,0.00019178,2]
[350182763,1737676239964,-500.0,0.00019178,2]
[350182764,1737676239973,-500.0,0.00019178,2]
[350182765,1737676239983,-500.0,0.00019178,2]
[350182766,1737676239993,-522.88089945,0.00019178,2]
[350182767,1737676240002,-500.0,0.00019178,2]
[350182768,1737676240011,-500.0,0.00019178,2]
[350182769,1737676240021,-501.67030172,0.00019178,2]
[350182770,1737676240031,-500.0,0.00019178,2]
[350182771,1737676240040,-426.42868395,0.00019178,2]
[350182772,1737676240051,-549.19365797,0.00019178,2]
[350182774,1737676240061,-512.6944992,0.00019178,2]
[350182777,1737676240072,-500.0,0.00019178,2]
[350182778,1737676240082,-531.3994437,0.00019178,2]
[350182779,1737676240092,-500.0,0.00019178,2]
[350182780,1737676240102,-500.0,0.00019178,2]
[350182781,1737676240112,-500.0,0.00019178,2]
[350182782,1737676240121,-500.0,0.00019178,2]
[350182783,1737676240131,-500.0,0.00019178,2]
[350182784,1737676240141,-500.0,0.00019178,2]
[350182785,1737676240151,-647.31891659,0.00019178,2]
[350182786,1737676240161,-394.1548276,0.00019178,2]
[350182787,1737676240170,-500.0,0.00019178,2]
[350182789,1737676240183,-500.0,0.00019178,2]
[350182791,1737676240193,-500.0,0.00019178,2]
[350182793,1737676240203,-510.09251729,0.00019178,2]
[350182795,1737676240213,-500.0,0.00019178,2]
[350182797,1737676240223,-500.0,0.00019178,2]
[350182798,1737676240233,-500.0,0.00019178,2]
[350182799,1737676240243,-500.0,0.00019178,2]
[350182800,1737676240253,-500.0,0.00019178,2]
[350182801,1737676240263,-2111.42,0.00019178,2]
[350182802,1737676240273,-500.0,0.00019178,2]
[350182803,1737676240283,-500.0,0.00019178,2]
[350182804,1737676240292,-500.0,0.00019178,2]
[350182805,1737676240302,-2386.93,0.00019178,2]
[350182806,1737676240312,-504.94883029,0.00019178,2]
[350182808,1737676240322,-500.0,0.00019178,2]
[350182810,1737676240332,-500.0,0.00019178,2]
[350182812,1737676240343,-500.0,0.00019178,2]
[350182814,1737676240352,-553.56901863,0.00019178,2]
[350182816,1737676240361,-501.63844109,0.00019178,2]
[350182817,1737676240371,-500.0,0.00019178,2]
[350182820,1737676240380,-500.0,0.00019178,2]
[350182822,1737676240390,-500.0,0.00019178,2]
[350182824,1737676240400,-500.0,0.00019178,2]
[350182826,1737676240409,-500.0,0.00019178,2]
[350182827,1737676240418,-500.0,0.00019178,2]
[350182830,1737676240429,-500.0,0.00019178,2]
[350182832,1737676240438,-754.22,0.00019178,2]
[350182834,1737676240448,-500.0,0.00019178,2]
[350182836,1737676240458,-500.0,0.00019178,2]
[350182838,1737676240467,-541.26,0.00019178,2]
[350182840,1737676240477,-500.0,0.00019178,2]
[350182842,1737676240487,-500.0,0.00019178,2]
[350182844,1737676240496,-507.87495675,0.00019178,2]
[350182846,1737676240506,-1165.72,0.00019178,2]
[350182848,1737676240515,-500.0,0.00019178,2]
[350182850,1737676240524,-503.64616594,0.00019178,2]
[350182852,1737676240535,-505.59568953,0.00019178,2]
[350182854,1737676240544,-503.88523968,0.00019178,2]
[350182856,1737676240554,-500.0,0.00019178,2]
[350182858,1737676240563,-500.0,0.00019178,2]
[350182859,1737676240572,-503.95833664,0.00019178,2]
[350182860,1737676240582,-502.81355144,0.00019178,2]
[350182861,1737676240595,-500.0,0.00019178,2]
[350182862,1737676240606,-500.0,0.00019178,2]
[350182864,1737676240615,-500.0,0.00019178,2]
[350182866,1737676240626,-500.0,0.00019178,2]
[350182867,1737676240635,-500.0,0.00019178,2]
[350182869,1737676240645,-500.0,0.00019178,2]
[350182871,1737676240656,-502.80895085,0.00019178,2]
[350182873,1737676240666,-500.0,0.00019178,2]
[350182875,1737676240676,-8059.92,0.00019178,2]
[350182876,1737676240685,-500.0,0.00019178,2]
[350182878,1737676240696,-500.0,0.00019178,2]
[350182880,1737676240706,-500.0,0.00019178,2]
[350182882,1737676240716,-500.0,0.00019178,2]
[350182883,1737676240725,-500.0,0.00019178,2]
[350182885,1737676240734,-500.0,0.00019178,2]
[350182887,1737676240743,-631.98,0.00019178,2]
[350182889,1737676240753,-635.06306619,0.00019178,2]
[350182890,1737676240763,-500.0,0.00019178,2]
[350182892,1737676240772,-500.0,0.00019178,2]
[350182894,1737676240781,-503.45073339,0.00019178,2]
[350182896,1737676240791,-500.0,0.00019178,2]
[350182897,1737676240801,-302.63,0.00019178,2]
[350182898,1737676240810,-491.05037151,0.00019178,2]
[350182900,1737676240819,-500.0,0.00019178,2]
[350182901,1737676240829,-500.0,0.00019178,2]
[350182903,1737676240838,-500.0,0.00019178,2]
[350182905,1737676240847,-500.0,0.00019178,2]
[350182907,1737676240857,-500.0,0.00019178,2]
[350182908,1737676240866,-500.0,0.00019178,2]
[350182910,1737676240875,-500.0,0.00019178,2]
[350182912,1737676240884,-500.0,0.00019178,2]
[350182914,1737676240893,-500.0,0.00019178,2]
[350182915,1737676240902,-500.0,0.00019178,2]
[350182917,1737676240912,-500.0,0.00019178,2]
[350182919,1737676240921,-500.0,0.00019178,2]
[350182921,1737676240930,-500.0,0.00019178,2]
[350182922,1737676240940,-500.0,0.00019178,2]
[350182924,1737676240949,-500.0,0.00019178,2]
[350182926,1737676240959,-500.0,0.00019178,2]
[350182928,1737676240969,-509.4227951,0.00019178,2]
[350182930,1737676240978,-500.0,0.00019178,2]
[350182931,1737676240988,-500.0,0.00019178,2]
[350182933,1737676240997,-355.14124457,0.00019178,2]
[350182935,1737676241006,-500.0,0.00019178,2]
[350182937,1737676241016,-500.0,0.00019178,2]
[350182939,1737676241026,-512.71,0.00019178,2]
[350182940,1737676241035,-500.0,0.00019178,2]
[350182942,1737676241044,-500.0,0.00019178,2]
[350182944,1737676241053,-500.0,0.00019178,2]
[350182946,1737676241062,-500.0,0.00019178,2]
[350182947,1737676241071,-500.0,0.00019178,2]
[350182949,1737676241081,-1075.5,0.00019178,2]
[350182951,1737676241090,-500.0,0.00019178,2]
[350182953,1737676241099,-500.0,0.00019178,2]
[350182955,1737676241109,-500.0,0.00019178,2]
[350182957,1737676241118,-500.0,0.00019178,2]
[350182959,1737676241128,-500.0,0.00019178,2]
[350182960,1737676241137,-500.0,0.00019178,2]
[350182962,1737676241146,-2231.2,0.00019178,2]
[350182964,1737676241155,-500.0,0.00019178,2]
[350182966,1737676241165,-500.0,0.00019178,2]
[350182968,1737676241174,-500.0,0.00019178,2]
[350182970,1737676241183,-500.0,0.00019178,2]
[350182972,1737676241192,-500.0,0.00019178,2]
[350182973,1737676241201,-500.0,0.00019178,2]
[350182975,1737676241211,-500.0,0.00019178,2]
[350182977,1737676241221,-500.0,0.00019178,2]
[350182979,1737676241231,-500.0,0.00019178,2]
[350182981,1737676241240,-500.0,0.00019178,2]
[350182983,1737676241249,-502.9610341,0.00019178,2]
[350182985,1737676241259,-500.0,0.00019178,2]
[350182987,1737676241269,-652.76,0.00019178,2]
[350182988,1737676241278,-500.0,0.00019178,2]
[350182990,1737676241287,-500.0,0.00019178,2]
[350182992,1737676241297,-500.0,0.00019178,2]
[350182994,1737676241307,-500.0,0.00019178,2]
[350182996,1737676241317,-1694.69,0.00019178,2]
[350182998,1737676241326,-500.0,0.00019178,2]
[350183000,1737676241336,-500.0,0.00019178,2]
[350183002,1737676241346,-537.1,0.00019178,2]
[350183004,1737676241355,-500.0,0.00019178,2]
[350183005,1737676241365,-506.23673172,0.00019178,2]
[350183007,1737676241374,-500.61550216,0.00019178,2]
[350183009,1737676241384,-500.0,0.00019178,2]
[350183011,1737676241393,-500.0,0.00019178,2]
[350183013,1737676241405,-500.0,0.00019178,2]
[350183015,1737676241414,-500.0,0.00019178,2]
[350183016,1737676241423,-500.0,0.00019178,2]
[350183018,1737676241432,-500.0,0.00019178,2]
[350183020,1737676241443,-500.0,0.00019178,2]
[350183022,1737676241453,-505.96190816,0.00019178,2]
[350183024,1737676241463,-500.0,0.00019178,2]
[350183026,1737676241472,-500.0,0.00019178,2]
[350183028,1737676241482,-1033.15,0.00019178,2]
[350183030,1737676241491,-500.0,0.00019178,2]
[350183032,1737676241500,-302.87886361,0.0001919,2]
[350183033,1737676241510,-500.0,0.00019315,3]
[350183035,1737676241519,-276.33,0.00019315,3]
[350183037,1737676241528,-500.0,0.00019315,3]
[350183039,1737676241537,-407.55,0.00019315,3]
[350183041,1737676241547,-422.22,0.00019315,3]
[350183042,1737676241556,-500.0,0.00019315,3]
[350183043,1737676241565,-178.31,0.00019315,3]
[350183044,1737676241575,-208.96,0.00019315,3]
[350183045,1737676241584,-419.09,0.00019315,3]
[350183046,1737676241598,-272.48,0.00019315,3]
[350183047,1737676241607,-251.7,0.00019315,3]
[350183048,1737676241616,-221.66,0.00019315,3]
[350183049,1737676241626,-500.0,0.00019315,3]
[350183050,1737676241635,-219.42,0.00019315,3]
[350183051,1737676241644,-392.42,0.00019315,3]
[350183052,1737676241654,-196.56,0.00019315,3]
[350183053,1737676241663,-500.0,0.00019315,3]
[350183054,1737676241673,-2111.42,0.00019315,3]
[350183055,1737676241682,-208.62802591,0.00019315,3]
[350183056,1737676241691,-2386.93,0.00019315,3]
[350183057,1737676241701,-754.22,0.00019315,3]
[350183058,1737676241711,-1165.72,0.00019315,3]
[350183059,1737676241720,-500.0,0.00019315,3]
[350183060,1737676241729,-342.69,0.00019315,3]
[350183061,1737676241739,-500.0,0.00019315,3]
[350183062,1737676241750,-8059.92,0.00019315,3]
[350183063,1737676241759,-500.0,0.00019315,3]
[350183064,1737676241768,-631.98,0.00019315,3]
[350183065,1737676241778,-500.0,0.00019315,3]
[350183066,1737676241788,-500.0,0.00019315,3]
[350183067,1737676241799,-500.0,0.00019315,3]
[350183068,1737676241808,-278.71,0.00019315,3]
[350183069,1737676241819,-512.71,0.00019315,3]
[350183070,1737676241829,-500.0,0.00019315,3]
[350183071,1737676241838,-500.0,0.00019315,3]
[350183072,1737676241934,-1075.5,0.00019315,3]
[350183073,1737676241944,-500.0,0.00019315,3]
[350183074,1737676241953,-500.0,0.00019315,3]
[350183075,1737676241963,-2231.2,0.00019315,3]
[350183076,1737676241972,-500.0,0.00019315,3]
[350183077,1737676241985,-340.19792056,0.00019315,3]
[350183078,1737676241994,-500.0,0.00019315,3]
[350183079,1737676242003,-500.0,0.00019315,3]
[350183080,1737676242013,-214.64815077,0.00019315,3]
[350183948,1737676890750,160.0,0.0002305,120]
[350183949,1737677010708,160.0,0.00023998,120]
[350183950,1737677070725,160.0,0.00023191,120]
[350183951,1737677132161,160.0,0.00023824,120]
[350183953,1737677157122,198.829643,0.00013973,2]
[350183954,1737677190724,160.0,0.00022763,120]
[350183955,1737677236143,-169.97244144,0.0001763,2]
[350183956,1737677236164,-300.0,0.00017808,2]
[350183957,1737677236187,-77.94886428,0.00017808,2]
[350184023,1737677432758,-300.0,0.00017808,2]
[350184025,1737677432770,-89.71022072,0.00017808,2]
[350184027,1737677432779,-20254.682767,0.00017809,2]
[350184028,1737677432789,-14800.53,0.00018,2]
[350184030,1737677432798,-15243.8679987,0.00018153,2]
[350184032,1737677432807,-196.94934956,0.00018978,2]
[350184034,1737677432816,-554.47355364,0.00019003,2]
[350184036,1737677432826,-152.66516287,0.00019078,2]
[350184038,1737677432836,-500.0,0.00019178,2]
[350184040,1737677432846,-493.90380827,0.00019178,2]
[350184042,1737677432855,-321.03659747,0.00019178,2]
[350184044,1737677432865,-501.82662371,0.00019178,2]
[350184046,1737677432875,-542.46709313,0.00019178,2]
[350184048,1737677432884,-198.25231518,0.00019178,2]
[350184050,1737677432893,-501.55696237,0.00019178,2]
[350184052,1737677432903,-500.0,0.00019178,2]
[350184054,1737677432915,-500.0,0.00019178,2]
[350184056,1737677432925,-500.0,0.00019178,2]
[350184058,1737677432934,-511.90014956,0.00019178,2]
[350184060,1737677432945,-616.61,0.00019178,2]
[350184062,1737677432954,-500.0,0.00019178,2]
[350184064,1737677432964,-1624.07,0.00019178,2]
[350184066,1737677432973,-500.0,0.00019178,2]
[350184068,1737677432982,-500.0,0.00019178,2]
[350184070,1737677432993,-500.0,0.00019178,2]
[350184072,1737677433003,-501.72085058,0.00019178,2]
[350184074,1737677433012,-500.0,0.00019178,2]
[350184076,1737677433024,-356.67732934,0.00019178,2]
[350184078,1737677433034,-500.0,0.00019178,2]
[350184080,1737677433043,-500.0,0.00019178,2]
[350184082,1737677433053,-500.0,0.00019178,2]
[350184084,1737677433063,-500.0,0.00019178,2]
[350184086,1737677433073,-504.97231072,0.00019178,2]
[350184088,1737677433083,-500.0,0.00019178,2]
[350184091,1737677433094,-500.0,0.00019178,2]
[350184092,1737677433103,-500.0,0.00019178,2]
[350184095,1737677433113,-500.0,0.00019178,2]
[350184096,1737677433122,-500.0,0.00019178,2]
[350184098,1737677433132,-500.0,0.00019178,2]
[350184100,1737677433142,-500.0,0.00019178,2]
[350184102,1737677433152,-500.0,0.00019178,2]
[350184105,1737677433161,-504.34253355,0.00019178,2]
[350184106,1737677433171,-1935.47,0.00019178,2]
[350184108,1737677433180,-500.0,0.00019178,2]
[350184110,1737677433190,-500.0,0.00019178,2]
[350184112,1737677433199,-990.1,0.00019178,2]
[350184114,1737677433209,-2188.02,0.00019178,2]
[350184116,1737677433219,-500.0,0.00019178,2]
[350184118,1737677433229,-500.0,0.00019178,2]
[350184120,1737677433239,-500.0,0.00019178,2]
[350184122,1737677433248,-500.0,0.00019178,2]
[350184124,1737677433258,-691.37,0.00019178,2]
[350184126,1737677433271,-1068.58,0.00019178,2]
[350184128,1737677433280,-500.0,0.00019178,2]
[350184130,1737677433289,-7388.26,0.00019178,2]
[350184132,1737677433299,-500.0,0.00019178,2]
[350184134,1737677433309,-579.31,0.00019178,2]
[350184136,1737677433320,-500.0,0.00019178,2]
[350184138,1737677433329,-500.0,0.00019178,2]
[350184140,1737677433339,-500.0,0.00019178,2]
[350184142,1737677433349,-500.0,0.00019178,2]
[350184144,1737677433359,-500.0,0.00019178,2]
[350184146,1737677433368,-500.0,0.00019178,2]
[350184148,1737677433379,-500.0,0.00019178,2]
[350184150,1737677433389,-2045.26,0.00019178,2]
[350184152,1737677433398,-500.0,0.00019178,2]
[350184154,1737677433408,-500.0,0.00019178,2]
[350184156,1737677433417,-985.87,0.00019178,2]
[350184158,1737677433427,-500.0,0.00019178,2]
[350184160,1737677433436,-500.0,0.00019178,2]
[350184162,1737677433445,-500.0,0.00019178,2]
[350184164,1737677433455,-500.0,0.00019178,2]
[350184166,1737677433464,-500.0,0.00019178,2]
[350184168,1737677433473,-168.293185,0.00019178,2]
[350184170,1737677433483,-152.0,0.00019275,2]
[350184172,1737677433494,-481.26121334,0.00019285,2]
[350184174,1737677433503,-2000.0,0.000193,3]
[350184176,1737677433513,-500.0,0.00019314,2]
[350184178,1737677433525,-500.0,0.00019314,2]
[350184180,1737677433535,-333.17327947,0.00019314,2]
[350184182,1737677433544,-500.0,0.00019315,3]
[350184184,1737677433553,-500.0,0.00019315,3]
[350184186,1737677433563,-500.0,0.00019315,3]
[350184188,1737677433572,-616.61,0.00019315,3]
[350184190,1737677433582,-1624.07,0.00019315,3]
[350184192,1737677433591,-500.0,0.00019315,3]
[350184193,1737677433601,-500.0,0.00019315,3]
[350184195,1737677433610,-500.0,0.00019315,3]
[350184196,1737677433620,-500.0,0.00019315,3]
[350184197,1737677433628,-500.0,0.00019315,3]
[350184198,1737677433639,-1935.47,0.00019315,3]
[350184199,1737677433649,-990.1,0.00019315,3]
[350184200,1737677433658,-2188.02,0.00019315,3]
[350184201,1737677433667,-691.37,0.00019315,3]
[350184202,1737677433676,-1068.58,0.00019315,3]
[350184203,1737677433686,-500.0,0.00019315,3]
[350184204,1737677433695,-7388.26,0.00019315,3]
[350184205,1737677433705,-500.0,0.00019315,3]
[350184206,1737677433714,-579.31,0.00019315,3]
[350184207,1737677433722,-500.0,0.00019315,3]
[350184208,1737677433731,-500.0,0.00019315,3]
[350184209,1737677433740,-500.0,0.00019315,3]
[350184210,1737677433749,-500.0,0.00019315,3]
[350184211,1737677433758,-500.0,0.00019315,3]
[350184212,1737677433767,-500.0,0.00019315,3]
[350184213,1737677433776,-2045.26,0.00019315,3]
[350184214,1737677433785,-500.0,0.00019315,3]
[350184215,1737677433794,-500.0,0.00019315,3]
[350184216,1737677433804,-985.87,0.00019315,3]
[350184218,1737677433814,-500.0,0.00019315,3]
[350184220,1737677433824,-500.0,0.00019315,3]
[350184222,1737677433833,-500.0,0.00019315,3]
[350184224,1737677433843,-500.0,0.00019315,3]
[350184226,1737677433853,-500.0,0.00019315,3]
[350184228,1737677433863,-227.19920417,0.00019316,2]
[350184230,1737677433872,-420.0,0.00019435,2]
[350184232,1737677433882,-155.96880624,0.0001945,2]
[350184234,1737677433891,-500.0,0.00019452,3]
[350184236,1737677433903,-500.0,0.00019452,3]
[350184238,1737677433914,-500.0,0.00019452,3]
[350184240,1737677433924,-616.61,0.00019452,3]
[350184242,1737677433934,-1624.07,0.00019452,3]
[350184244,1737677433943,-500.0,0.00019452,3]
[350184246,1737677433957,-500.0,0.00019452,3]
[350184248,1737677433968,-500.0,0.00019452,3]
[350184250,1737677433979,-500.0,0.00019452,3]
[350184252,1737677433991,-1935.47,0.00019452,3]
[350184254,1737677434002,-990.1,0.00019452,3]
[350184256,1737677434012,-2188.02,0.00019452,3]
[350184258,1737677434030,-691.37,0.00019452,3]
[350184260,1737677434051,-1068.58,0.00019452,3]
[350184262,1737677434061,-500.0,0.00019452,3]
[350184265,1737677434071,-7388.26,0.00019452,3]
[350184267,1737677434081,-500.0,0.00019452,3]
[350184269,1737677434091,-579.31,0.00019452,3]
[350184271,1737677434101,-500.0,0.00019452,3]
[350184273,1737677434111,-500.0,0.00019452,3]
[350184275,1737677434122,-607.19,0.00019452,3]
[350184277,1737677434132,-500.0,0.00019452,3]
[350184279,1737677434141,-436.48,0.00019452,3]
[350184281,1737677434151,-500.0,0.00019452,3]
[350184283,1737677434161,-2045.26,0.00019452,3]
[350184285,1737677434171,-500.0,0.00019452,3]
[350184287,1737677434180,-500.0,0.00019452,3]
[350184288,1737677434190,-985.87,0.00019452,3]
[350184290,1737677434199,-500.0,0.00019452,3]
[350184292,1737677434209,-611.4,0.00019452,3]
[350184295,1737677434219,-500.0,0.00019452,3]
[350184296,1737677434229,-500.0,0.00019452,3]
[350184298,1737677434239,-500.0,0.00019452,3]
[350184300,1737677434248,-320.231896,0.00019559,2]
[350184302,1737677434258,-500.0,0.00019588,2]
[350184304,1737677434268,-234.06267859,0.00019588,2]
[350184306,1737677434278,-584.46418817,0.00019588,2]
[350184308,1737677434288,-15396.10260535,0.00019588,5]
[350184310,1737677434298,-113790.85380508,0.00019589,5]
[350184312,1737677434308,-500.0,0.00019589,3]
[350184314,1737677434317,-500.0,0.00019589,3]
[350184316,1737677434327,-500.0,0.00019589,3]
[350184319,1737677434339,-616.61,0.00019589,3]
[350184321,1737677434348,-1624.07,0.00019589,3]
[350184323,1737677434358,-500.0,0.00019589,3]
[350184325,1737677434368,-500.0,0.00019589,3]
[350184327,1737677434377,-294.32,0.00019589,3]
[350184329,1737677434386,-500.0,0.00019589,3]
[350184331,1737677434395,-1935.47,0.00019589,3]
[350184333,1737677434405,-990.1,0.00019589,3]
[350184335,1737677434416,-2188.02,0.00019589,3]